bitfinex/quotes_BTCUSD_20230108
["timestamp","ask_amount","ask_price","bid_price","bid_amount"]
[1673154130819,0.89158695,16951.0,16950.0,0.0661981]
[1673154135273,0.89158695,16951.0,16950.0,0.06632921]
[1673154135540,0.89158695,16951.0,16950.0,0.0661981]
[1673154144728,0.89158695,16951.0,16950.0,0.06610254]
[1673154150816,0.89158695,16951.0,16950.0,0.06623365]
[1673154151083,0.89158695,16951.0,16950.0,0.06610254]
[1673154159191,0.89158695,16951.0,16950.0,0.67372254]
[1673154160224,0.89158695,16951.0,16950.0,0.06610254]
[1673154162646,0.89158695,16951.0,16950.0,0.67372254]
[1673154164327,0.89158695,16951.0,16950.0,0.06610254]
[1673154165093,0.89158695,16951.0,16950.0,0.67372254]
[1673154165596,0.89158695,16951.0,16950.0,0.06610254]
[1673154166071,0.89158695,16951.0,16950.0,0.67372254]
[1673154168368,0.89158695,16951.0,16950.0,0.67364657]
[1673154171816,0.89158695,16951.0,16950.0,0.06602657]
[1673154172591,0.89158695,16951.0,16950.0,0.67364657]
[1673154172872,0.89158695,16951.0,16950.0,0.06602657]
[1673154174285,0.89158695,16951.0,16950.0,0.67364657]
[1673154174757,0.89158695,16951.0,16950.0,0.06602657]
[1673154175198,0.89158695,16951.0,16950.0,0.67364657]
[1673154175476,0.89158695,16951.0,16950.0,0.06602657]
[1673154176409,0.89158695,16951.0,16950.0,0.67364657]
[1673154176911,0.89158695,16951.0,16950.0,0.06602657]
[1673154177415,1.48890733,16951.0,16950.0,0.06602657]
[1673154177678,1.92877233,16951.0,16950.0,0.06602657]
[1673154178187,1.48890733,16951.0,16950.0,0.06602657]
[1673154178447,0.89158695,16951.0,16950.0,0.06602657]
[1673154179200,1.48890733,16951.0,16950.0,0.06602657]
[1673154179457,1.92877233,16951.0,16950.0,0.06602657]
[1673154180422,1.48890733,16951.0,16950.0,0.06602657]
[1673154182389,1.92877233,16951.0,16950.0,0.06602657]
[1673154185275,1.48890733,16951.0,16950.0,0.06602657]
[1673154188308,1.48890733,16951.0,16950.0,0.06591201]
[1673154189068,1.92877233,16951.0,16950.0,0.06591201]
[1673154189553,1.48890733,16951.0,16950.0,0.06591201]
[1673154192229,0.89158695,16951.0,16950.0,0.06591201]
[1673154194504,1.33145195,16951.0,16950.0,0.06591201]
[1673154195221,0.89158695,16951.0,16950.0,0.06591201]
[1673154197179,1.33145195,16951.0,16950.0,0.06591201]
[1673154199358,0.89158695,16951.0,16950.0,0.06591201]
[1673154199597,1.48890733,16951.0,16950.0,0.06591201]
[1673154199810,0.89158695,16951.0,16950.0,0.06591201]
[1673154200271,1.48890733,16951.0,16950.0,0.06591201]
[1673154200510,1.92877233,16951.0,16950.0,0.06591201]
[1673154200760,1.48890733,16951.0,16950.0,0.06591201]
[1673154201826,1.48890733,16951.0,16950.0,0.0660372]
[1673154202095,0.89158695,16951.0,16950.0,0.06591201]
[1673154203514,1.48890733,16951.0,16950.0,0.06591201]
[1673154204026,0.89158695,16951.0,16950.0,0.06591201]
[1673154209058,1.48890733,16951.0,16950.0,0.06591201]
[1673154209780,1.48890733,16951.0,16950.0,0.06579246]
[1673154210231,1.92877233,16951.0,16950.0,0.06579246]
[1673154211133,1.48890733,16951.0,16950.0,0.06579246]
[1673154211384,1.92877233,16951.0,16950.0,0.06579246]
[1673154211877,1.48890733,16951.0,16950.0,0.06579246]
[1673154212582,1.92877233,16951.0,16950.0,0.06579246]
[1673154213458,1.48890733,16951.0,16950.0,0.06579246]
[1673154216012,1.92877233,16951.0,16950.0,0.06579246]
[1673154216274,1.48890733,16951.0,16950.0,0.06579246]
[1673154216755,1.48883752,16951.0,16950.0,0.06579246]
[1673154218338,1.48870638,16951.0,16950.0,0.06579246]
[1673154218642,1.92857138,16951.0,16950.0,0.06579246]
[1673154219160,1.48870638,16951.0,16950.0,0.06579246]
[1673154220622,1.92857138,16951.0,16950.0,0.06579246]
[1673154221258,0.891386,16951.0,16950.0,0.06579246]
[1673154221984,1.48870638,16951.0,16950.0,0.06579246]
[1673154222200,1.92857138,16951.0,16950.0,0.06579246]
[1673154224051,1.48870638,16951.0,16950.0,0.06579246]
[1673154224329,1.52411993,16951.0,16950.0,0.06579246]
[1673154231131,1.48870638,16951.0,16950.0,0.06591765]
[1673154231363,0.891386,16951.0,16950.0,0.06579246]
[1673154232336,1.48870638,16951.0,16950.0,0.06579246]
[1673154233398,1.52411993,16951.0,16950.0,0.06579246]
[1673154235612,1.96398493,16951.0,16950.0,0.06579246]
[1673154236387,1.52411993,16951.0,16950.0,0.06579246]
[1673154237981,1.96398493,16951.0,16950.0,0.06579246]
[1673154239167,1.52411993,16951.0,16950.0,0.06579246]
[1673154239393,1.52411993,16951.0,16950.0,0.06571508]
[1673154242919,0.92679955,16951.0,16950.0,0.06571508]
[1673154243903,1.52411993,16951.0,16950.0,0.06571508]
[1673154244486,1.52411993,16951.0,16950.0,0.06786914]
[1673154244736,0.92679955,16951.0,16950.0,0.06571508]
[1673154245033,1.52411993,16951.0,16950.0,0.06571508]
[1673154245503,0.92679955,16951.0,16950.0,0.06571508]
[1673154245996,1.52411993,16951.0,16950.0,0.06571508]
[1673154250338,0.92679955,16951.0,16950.0,0.06571508]
[1673154250826,1.52411993,16951.0,16950.0,0.06571508]
[1673154253670,0.92679955,16951.0,16950.0,0.06571508]
[1673154254191,1.52411993,16951.0,16950.0,0.06571508]
[1673154255997,1.52404126,16951.0,16950.0,0.06571508]
[1673154259464,0.92672088,16951.0,16950.0,0.06571508]
[1673154259711,1.52404126,16951.0,16950.0,0.06571508]
[1673154260293,0.92672088,16951.0,16950.0,0.06571508]
[1673154261110,1.52404126,16951.0,16950.0,0.06571508]
[1673154261716,0.92672088,16951.0,16950.0,0.06571508]
[1673154262453,1.52404126,16951.0,16950.0,0.06571508]
[1673154267968,0.89130733,16951.0,16950.0,0.06786914]
[1673154268753,0.89130733,16951.0,16950.0,0.06571508]
[1673154270879,0.30137233,16951.0,16950.0,0.06571508]
[1673154271133,0.30137233,16951.0,16950.0,0.06786914]
[1673154271901,0.30137233,16951.0,16950.0,0.06571508]
[1673154279251,0.30137233,16951.0,16950.0,0.06562005]
[1673154279516,0.80137233,16951.0,16950.0,0.06562005]
[1673154280052,0.80137233,16951.0,16950.0,0.06777411]
[1673154280274,0.80137233,16951.0,16950.0,0.06562005]
[1673154281687,1.33261035,16951.0,16950.0,0.54081283]
[1673154281951,1.33261035,16951.0,16950.0,0.06562005]
[1673154283290,1.33261035,16951.0,16950.0,0.06777411]
[1673154283533,1.33261035,16951.0,16950.0,0.06562005]
[1673154284147,1.33261035,16951.0,16950.0,0.06777411]
[1673154284414,1.33261035,16951.0,16950.0,0.06562005]
[1673154288711,0.83261035,16951.0,16950.0,0.06562005]
[1673154290821,0.83261035,16951.0,16950.0,0.06596503]
[1673154291155,0.83261035,16951.0,16950.0,0.06562005]
[1673154291687,0.83261035,16951.0,16950.0,0.06596503]
[1673154291943,0.83261035,16951.0,16950.0,0.06562005]
[1673154293162,0.83261035,16951.0,16950.0,0.06596503]
[1673154293647,0.83261035,16951.0,16950.0,0.06562005]
[1673154294222,0.83261035,16951.0,16950.0,0.06596503]
[1673154295689,0.83261035,16951.0,16950.0,0.06562005]
[1673154297543,0.83261035,16951.0,16950.0,0.06596503]
[1673154298294,0.83261035,16951.0,16950.0,0.06562005]
[1673154299048,0.83261035,16951.0,16950.0,0.06596503]
[1673154299263,0.83261035,16951.0,16950.0,0.06562005]
[1673154300534,0.83261035,16951.0,16950.0,0.06554529]
[1673154300754,0.8680239,16951.0,16950.0,0.06554529]
[1673154301151,0.33678588,16951.0,16950.0,0.06554529]
[1673154301365,1.36136224,16951.0,16950.0,0.06554529]
[1673154301598,1.3613624,16951.0,16950.0,0.06554529]
[1673154304274,1.36126737,16951.0,16950.0,0.06554529]
[1673154306878,0.83010485,16951.0,16950.0,0.06554529]
[1673154307865,1.36137291,16951.0,16950.0,0.06554529]
[1673154309351,0.83010485,16951.0,16950.0,0.06602105]
[1673154309599,0.83010485,16951.0,16950.0,0.06554529]
[1673154310909,1.36137422,16951.0,16950.0,0.06554529]
[1673154311166,0.82596067,16951.0,16950.0,0.06602105]
[1673154311387,0.82596067,16951.0,16950.0,0.06554529]
[1673154312094,0.82596067,16951.0,16950.0,0.06602105]
[1673154312604,0.82596067,16951.0,16950.0,0.06554529]
[1673154313554,0.82596067,16951.0,16950.0,0.06602105]
[1673154314073,0.82596067,16951.0,16950.0,0.06554529]
[1673154315021,0.2946913,16951.0,16950.0,0.06554529]
[1673154315247,0.82596277,16951.0,16950.0,0.06554529]
[1673154315472,0.7345563,16951.0,16950.0,0.06554529]
[1673154315960,0.2946913,16951.0,16950.0,0.06554529]
[1673154316200,0.82597263,16951.0,16950.0,0.06554529]
[1673154316682,0.82597263,16951.0,16950.0,0.06602105]
[1673154316900,0.82597263,16951.0,16950.0,0.06554529]
[1673154317730,0.7345563,16951.0,16950.0,0.06554529]
[1673154318502,0.82598079,16951.0,16950.0,0.06554529]
[1673154319535,0.7345563,16951.0,16950.0,0.06554529]
[1673154319838,0.2946913,16951.0,16950.0,0.06554529]
[1673154320049,0.82598668,16951.0,16950.0,0.06554529]
[1673154320868,0.82598668,16951.0,16950.0,0.06602105]
[1673154321091,0.82598668,16951.0,16950.0,0.06554529]
[1673154321610,0.2946913,16951.0,16950.0,0.06554529]
[1673154328918,0.7345563,16951.0,16950.0,0.06554529]
[1673154329168,0.7345563,16951.0,16950.0,0.06543432]
[1673154330955,0.76996985,16951.0,16950.0,0.06543432]
[1673154332989,1.35990485,16951.0,16950.0,0.06543432]
[1673154333507,1.3893904,16951.0,16950.0,0.06543432]
[1673154333765,0.9495254,16951.0,16950.0,0.06543432]
[1673154337219,1.3893904,16951.0,16950.0,0.06543432]
[1673154338348,0.9495254,16951.0,16950.0,0.06543432]
[1673154338604,1.3893904,16951.0,16950.0,0.06543432]
[1673154338944,0.9495254,16951.0,16950.0,0.06543432]
[1673154340126,1.3893904,16951.0,16950.0,0.06543432]
[1673154340375,0.9495254,16951.0,16950.0,0.06543432]
[1673154343933,1.3893904,16951.0,16950.0,0.06543432]
[1673154344208,0.9495254,16951.0,16950.0,0.06543432]
[1673154344732,1.3893904,16951.0,16950.0,0.06543432]
[1673154345245,0.9495254,16951.0,16950.0,0.06543432]
[1673154345902,1.3893904,16951.0,16950.0,0.06543432]
[1673154347182,0.9495254,16951.0,16950.0,0.06543432]
[1673154349388,1.3893904,16951.0,16950.0,0.06543432]
[1673154349637,0.9495254,16951.0,16950.0,0.06543432]
[1673154350517,0.9495254,16951.0,16950.0,0.0653437]
[1673154351475,0.3595904,16951.0,16950.0,0.0653437]
[1673154351714,1.4495254,16951.0,16950.0,0.0653437]
[1673154352186,1.8893904,16951.0,16950.0,0.0653437]
[1673154352426,1.4495254,16951.0,16950.0,0.0653437]
[1673154357018,1.41411185,16951.0,16950.0,0.0653437]
[1673154357250,0.82417685,16951.0,16950.0,0.0653437]
[1673154358261,0.82417685,16951.0,16950.0,0.06546979]
[1673154358514,0.82417685,16951.0,16950.0,0.0653437]
[1673154362636,0.32417685,16951.0,16950.0,0.0653437]
[1673154363866,0.82417685,16951.0,16950.0,0.0653437]
[1673154364115,0.32417685,16951.0,16950.0,0.0653437]
[1673154367094,0.32417685,16951.0,16950.0,0.06546979]
[1673154367357,0.32417685,16951.0,16950.0,0.0653437]
[1673154371449,0.32417685,16951.0,16950.0,0.06546979]
[1673154371653,0.32417685,16951.0,16950.0,0.0653437]
[1673154374410,0.82417685,16951.0,16950.0,0.06524497]
[1673154378527,0.82411232,16951.0,16950.0,0.06524497]
[1673154380436,0.82411232,16951.0,16950.0,0.06537106]
[1673154380659,0.82411232,16951.0,16950.0,0.06524497]
[1673154384603,0.82411232,16951.0,16950.0,0.06537106]
[1673154384879,0.82411232,16951.0,16950.0,0.06524497]
[1673154387551,0.32411232,16951.0,16950.0,0.06524497]
[1673154388065,0.32411232,16951.0,16950.0,0.06537106]
[1673154388317,0.32411232,16951.0,16950.0,0.06524497]
[1673154390574,0.26602058,16951.0,16950.0,0.54056384]
[1673154390840,0.79728376,16951.0,16950.0,2.31529513]
[1673154391357,0.26602058,16951.0,16950.0,2.31529513]
[1673154391607,0.70857814,16951.0,16950.0,2.31529513]
[1673154391862,0.26302058,16951.0,16950.0,2.31529513]
[1673154393356,0.19285924,16951.0,16950.0,2.31529513]
[1673154393674,0.31585879,16951.0,16950.0,2.31529513]
[1673154394373,0.31585879,16951.0,16950.0,1.70767513]
[1673154395493,0.63527627,16951.0,16950.0,1.70767513]
[1673154395749,0.75827582,16951.0,16950.0,2.31529513]
[1673154396283,0.75827582,16951.0,16950.0,1.70767513]
[1673154396829,0.31585879,16951.0,16950.0,1.70767513]
[1673154397287,0.63524299,16951.0,16950.0,1.70767513]
[1673154397529,0.75824309,16951.0,16950.0,1.70767513]
[1673154397823,0.75824301,16951.0,16950.0,1.70767513]
[1673154399544,0.75824301,16951.0,16950.0,2.31529513]
[1673154401413,0.75824301,16951.0,16950.0,2.3151913]
[1673154401633,0.75824301,16951.0,16950.0,1.7075713]
[1673154407194,1.1120378,16951.0,16950.0,1.7075713]
[1673154418524,0.81199747,16951.0,16950.0,2.2975413]
[1673154418773,0.81199747,16951.0,16950.0,2.9051613]
[1673154419562,1.112237,16951.0,16950.0,2.90514932]
[1673154419820,0.98903825,16951.0,16950.0,2.90514932]
[1673154420570,0.81200491,16951.0,16950.0,2.90514932]
[1673154420821,1.25438913,16951.0,16950.0,2.90514932]
[1673154421081,0.81200491,16951.0,16950.0,2.90514932]
[1673154421334,0.98903825,16951.0,16950.0,2.90514932]
[1673154421821,0.98485825,16951.0,16950.0,2.90514932]
[1673154422314,0.75514195,16951.0,16950.0,2.31506521]
[1673154422835,0.75514195,16951.0,16950.0,1.70744521]
[1673154425416,0.31275773,16951.0,16950.0,1.70744521]
[1673154426389,0.31275773,16951.0,16950.0,1.70766974]
[1673154426957,0.63110164,16951.0,16950.0,1.70766974]
[1673154427237,0.31275773,16951.0,16950.0,1.70766974]
[1673154429491,0.31275773,16951.0,16950.0,2.31528974]
[1673154429746,0.63133152,16951.0,16950.0,2.31528974]
[1673154429995,0.75541001,16951.0,16950.0,2.31528974]
[1673154440094,0.75541001,16951.0,16950.0,2.90525974]
[1673154444156,0.75541001,16951.0,16950.0,2.90517349]
[1673154447244,0.75541001,16951.0,16950.0,2.29755349]
[1673154448272,1.10952585,16951.0,16950.0,2.29755349]
[1673154451338,1.10952585,16951.0,16950.0,2.90517349]
[1673154452055,0.75541001,16951.0,16950.0,2.29755349]
[1673154452829,0.98541004,16951.0,16950.0,2.90517349]
[1673154453085,1.10948853,16951.0,16950.0,2.90517349]
[1673154453340,1.10948539,16951.0,16950.0,2.90517349]
[1673154454929,0.75541001,16951.0,16950.0,2.90517349]
[1673154455404,1.10948179,16951.0,16950.0,2.90517349]
[1673154455638,0.75541001,16951.0,16950.0,2.90517349]
[1673154455897,1.10948178,16951.0,16950.0,2.90517349]
[1673154457205,0.75541001,16951.0,16950.0,2.90517349]
[1673154457689,1.10947733,16951.0,16950.0,2.90517349]
[1673154457960,0.75541001,16951.0,16950.0,2.90517349]
[1673154459087,1.10947937,16951.0,16950.0,2.90517349]
[1673154459337,1.10947819,16951.0,16950.0,2.90517349]
[1673154459620,1.1094781,16951.0,16950.0,2.90517349]
[1673154461136,0.75541001,16951.0,16950.0,2.90517349]
[1673154461981,1.10948123,16951.0,16950.0,2.90517349]
[1673154491562,0.75541001,16951.0,16950.0,2.90517349]
[1673154491805,0.98550359,16951.0,16950.0,2.90517349]
[1673154492079,1.10970665,16951.0,16950.0,2.90517349]
[1673154492338,1.10970665,16951.0,16950.0,2.29755349]
[1673154494947,1.46388173,16951.0,16950.0,2.29755349]
[1673154501741,1.46388173,16951.0,16950.0,2.90517349]
[1673154504234,1.46388173,16951.0,16950.0,2.29755349]
[1673154506575,1.46388173,16951.0,16950.0,2.90517349]
[1673154518295,1.43768804,16951.0,16950.0,2.90517349]
[1673154518541,1.46752826,16951.0,16950.0,2.90517349]
[1673154519059,1.46752826,16951.0,16950.0,2.29755349]
[1673154519803,1.4666055,16951.0,16950.0,2.29755349]
[1673154520824,1.3433252,16951.0,16950.0,2.29755349]
[1673154521324,1.3433252,16951.0,16950.0,2.90517349]
[1673154526067,1.46471912,16951.0,16950.0,2.90517349]
[1673154527038,1.46471912,16951.0,16950.0,2.29755349]
[1673154528567,1.46471912,16951.0,16950.0,2.90517349]
[1673154529316,1.46471912,16951.0,16950.0,2.29755349]
[1673154530774,1.11054404,16951.0,16950.0,2.29755349]
[1673154535647,1.46469144,16951.0,16950.0,2.29755349]
[1673154539159,1.46469144,16951.0,16950.0,2.90517349]
[1673154540673,1.46469144,16951.0,16950.0,2.29755349]
[1673154541673,1.11054404,16951.0,16950.0,2.29755349]
[1673154541899,1.46468506,16951.0,16950.0,2.29755349]
[1673154543921,1.46468506,16951.0,16950.0,2.90517349]
[1673154551563,1.46460215,16951.0,16950.0,2.90517349]
[1673154552285,1.45460215,16951.0,16950.0,2.90517349]
[1673154557213,1.45460215,16951.0,16950.0,2.29755349]
[1673154559689,1.45460215,16951.0,16950.0,2.29743984]
[1673154560148,1.10046113,16951.0,16950.0,2.29743984]
[1673154561400,1.45460148,16951.0,16950.0,2.29743984]
[1673154561618,1.33320756,16951.0,16950.0,2.90505984]
[1673154562470,1.59880871,16951.0,16950.0,2.90505984]
[1673154562712,1.15615643,16951.0,16950.0,2.90505984]
[1673154562956,1.59880871,16951.0,16950.0,2.90505984]
[1673154563688,1.33320756,16951.0,16950.0,2.90505984]
[1673154564155,1.45437976,16951.0,16950.0,2.90505984]
[1673154564680,1.33320756,16951.0,16950.0,2.90505984]
[1673154566548,1.59881229,16951.0,16950.0,2.90505984]
[1673154567606,1.15616001,16951.0,16950.0,2.90505984]
[1673154567866,1.59881229,16951.0,16950.0,2.90505984]
[1673154568136,1.15616001,16951.0,16950.0,2.90505984]
[1673154570343,1.59881229,16951.0,16950.0,2.90505984]
[1673154570874,1.33320756,16951.0,16950.0,2.90505984]
[1673154573354,1.33320756,16951.0,16950.0,2.90497649]
[1673154574109,1.45428476,16951.0,16950.0,2.90497649]
[1673154574372,1.33320756,16951.0,16950.0,2.90497649]
[1673154574868,1.45428466,16951.0,16950.0,2.90497649]
[1673154577155,1.33320756,16951.0,16950.0,2.90497649]
[1673154578424,1.10006946,16951.0,16950.0,2.90497649]
[1673154578687,0.97903549,16951.0,16950.0,2.90497649]
[1673154579686,1.09905365,16951.0,16950.0,2.90497649]
[1673154580733,0.97903549,16951.0,16950.0,2.90497649]
[1673154583108,1.24464285,16951.0,16950.0,2.90497649]
[1673154583363,0.97903549,16951.0,16950.0,2.90497649]
[1673154583606,1.24464282,16951.0,16950.0,2.90497649]
[1673154584379,0.80199054,16951.0,16950.0,2.90497649]
[1673154584585,1.24464282,16951.0,16950.0,2.90497649]
[1673154584844,0.80199054,16951.0,16950.0,2.90497649]
[1673154586739,1.24464282,16951.0,16950.0,2.90497649]
[1673154587502,0.80199054,16951.0,16950.0,2.90497649]
[1673154596488,1.24464282,16951.0,16950.0,2.29735649]
[1673154597032,0.97903549,16951.0,16950.0,2.29735649]
[1673154598566,0.26561192,16951.0,16950.0,1.7202152]
[1673154598812,0.26561192,16951.0,16950.0,2.3278352]
[1673154599806,0.26561192,16951.0,16950.0,2.91477065]
[1673154600293,0.26561192,16951.0,16950.0,2.3278352]
[1673154601055,0.26561192,16951.0,16950.0,1.7202152]
[1673154601550,0.26561192,16951.0,16950.0,2.3278352]
[1673154601812,0.26561192,16951.0,16950.0,1.7202152]
[1673154602068,0.26561192,16951.0,16950.0,2.35259393]
[1673154602324,0.26561192,16951.0,16950.0,2.94256393]
[1673154603344,0.26561192,16951.0,16950.0,2.35259393]
[1673154603607,0.49943706,16953.0,16950.0,2.37689021]
[1673154603849,2.11023993,16954.0,16950.0,2.37689021]
[1673154604129,0.5,16952.0,16950.0,2.37689021]
[1673154604380,1.03129462,16952.0,16950.0,2.37689021]
[1673154604904,1.03129462,16952.0,16951.0,0.51826235]
[1673154605385,0.087,16952.0,16951.0,0.51826235]
[1673154605642,0.5,16952.0,16951.0,1.10819735]
[1673154605903,0.587,16952.0,16951.0,1.11719735]
[1673154606147,0.087,16952.0,16951.0,1.11719735]
[1673154606885,1.03036657,16953.0,16951.0,1.10819735]
[1673154607139,0.087,16952.0,16951.0,1.61668641]
[1673154607391,0.5,16952.0,16951.0,1.10819735]
[1673154607638,0.587,16952.0,16951.0,1.11719735]
[1673154607882,1.03031494,16953.0,16951.0,1.10819735]
[1673154608123,1.03031494,16953.0,16951.0,1.60768641]
[1673154608124,0.53129462,16953.0,16951.0,1.60768641]
[1673154608385,0.61829462,16953.0,16951.0,1.60768641]
[1673154608650,0.069,16952.0,16951.0,1.11419735]
[1673154608899,0.5,16952.0,16951.0,1.10819735]
[1673154609143,0.5,16952.0,16951.0,1.11719735]
[1673154609636,0.55779133,16952.0,16951.0,1.11719735]
[1673154610638,0.05779133,16952.0,16951.0,1.10819735]
[1673154610888,0.12679133,16952.0,16951.0,1.11442715]
[1673154614396,0.12667245,16952.0,16951.0,1.11442715]
[1673154616173,0.12667245,16952.0,16951.0,1.11419735]
[1673154619645,0.12667245,16952.0,16951.0,0.52426235]
[1673154619891,0.56653745,16952.0,16951.0,0.52426235]
[1673154620107,0.12667245,16952.0,16951.0,0.52426235]
[1673154620881,0.12667245,16952.0,16951.0,0.52449215]
[1673154621410,0.12667245,16952.0,16951.0,0.52426235]
[1673154623727,0.12667245,16952.0,16951.0,0.52449215]
[1673154624021,0.12667245,16952.0,16951.0,0.52426235]
[1673154625877,0.12667245,16952.0,16951.0,0.52449215]
[1673154631683,0.12667245,16952.0,16951.0,0.52426235]
[1673154632506,0.56653745,16952.0,16951.0,0.52426235]
[1673154632759,0.12667245,16952.0,16951.0,0.52426235]
[1673154634996,0.12667245,16952.0,16951.0,0.52449215]
[1673154636117,0.12667245,16952.0,16951.0,0.52426235]
[1673154636338,0.12667245,16952.0,16951.0,0.52449215]
[1673154636555,0.12667245,16952.0,16951.0,0.52426235]
[1673154637268,0.12667245,16952.0,16951.0,0.52449215]
[1673154638880,0.62667245,16952.0,16951.0,0.52438718]
[1673154639142,0.12667245,16952.0,16951.0,0.52438718]
[1673154640888,0.12667245,16952.0,16951.0,0.52415738]
[1673154641685,0.65796707,16952.0,16951.0,0.52415738]
[1673154647177,1.09783207,16952.0,16951.0,0.52415738]
[1673154648460,0.65796707,16952.0,16951.0,0.52415738]
[1673154649209,1.09783207,16952.0,16951.0,0.52415738]
[1673154649732,0.65796707,16952.0,16951.0,0.52415738]
[1673154659055,0.65796707,16952.0,16951.0,0.52406443]
[1673154666670,1.09783207,16952.0,16951.0,0.52406443]
[1673154667843,0.65796707,16952.0,16951.0,0.52406443]
[1673154674045,0.65796707,16952.0,16951.0,1.02355349]
[1673154674297,0.65796707,16952.0,16951.0,1.63117349]
[1673154674796,0.65796707,16952.0,16951.0,1.02355349]
[1673154675464,0.65796707,16952.0,16951.0,0.52406443]
[1673154676505,0.65796707,16952.0,16951.0,1.13168443]
[1673154676798,0.65796707,16952.0,16951.0,1.63117349]
[1673154677795,0.65796707,16952.0,16951.0,1.02355349]
[1673154678029,0.65796707,16952.0,16951.0,0.52406443]
[1673154678492,0.65796707,16952.0,16951.0,1.13168443]
[1673154678723,0.65796707,16952.0,16951.0,1.63117349]
[1673154678957,0.65796707,16952.0,16951.0,1.02355349]
[1673154679203,0.65796707,16952.0,16951.0,0.52406443]
[1673154679763,0.65796707,16952.0,16951.0,1.13168443]
[1673154680184,0.65796707,16952.0,16951.0,0.52394872]
[1673154680642,0.65796707,16952.0,16951.0,1.13156872]
[1673154681116,0.65796707,16952.0,16951.0,0.52394872]
[1673154681577,0.65796707,16952.0,16951.0,1.13156872]
[1673154682266,0.65796707,16952.0,16951.0,1.63105778]
[1673154683428,0.65796707,16952.0,16951.0,1.02343778]
[1673154683617,0.65796707,16952.0,16951.0,0.52394872]
[1673154685321,0.65796707,16952.0,16951.0,1.13156872]
[1673154685783,0.65796707,16952.0,16951.0,0.52394872]
[1673154686534,0.65796707,16952.0,16951.0,1.13156872]
[1673154687053,0.65796707,16952.0,16951.0,0.52394872]
[1673154687558,0.65796707,16952.0,16951.0,1.13156872]
[1673154688049,0.65796707,16952.0,16951.0,0.52394872]
[1673154688561,0.65796707,16952.0,16951.0,1.13156872]
[1673154689047,0.65796707,16952.0,16951.0,0.52394872]
[1673154689543,0.65796707,16952.0,16951.0,1.13156872]
[1673154690247,0.65796707,16952.0,16951.0,0.52394872]
[1673154690747,0.65796707,16952.0,16951.0,1.13156872]
[1673154691019,0.65796707,16952.0,16951.0,1.63105778]
[1673154691528,0.65796707,16952.0,16951.0,1.02343778]
[1673154693480,0.65796707,16952.0,16951.0,1.63105778]
[1673154693735,0.65796707,16952.0,16951.0,1.02343778]
[1673154693960,0.65796707,16952.0,16951.0,1.13156872]
[1673154694208,0.65796707,16952.0,16951.0,1.02343778]
[1673154694463,0.65796707,16952.0,16951.0,0.52394872]
[1673154695013,0.65796707,16952.0,16951.0,1.02343778]
[1673154695269,0.65796707,16952.0,16951.0,1.63105778]
[1673154695535,0.65796707,16952.0,16951.0,1.02343778]
[1673154695788,0.65796707,16952.0,16951.0,1.63105778]
[1673154696347,0.65796707,16952.0,16951.0,1.02343778]
[1673154697346,0.65796707,16952.0,16951.0,1.63105778]
[1673154698117,0.12667245,16952.0,16951.0,1.63105778]
[1673154698374,0.65796707,16952.0,16951.0,1.02343778]
[1673154698650,0.12667245,16952.0,16951.0,1.02343778]
[1673154699128,0.65796707,16952.0,16951.0,1.02343778]
[1673154699639,0.12667245,16952.0,16951.0,1.02343778]
[1673154700349,0.65796707,16952.0,16951.0,1.02334384]
[1673154700595,0.12667245,16952.0,16951.0,1.02334384]
[1673154702119,0.65796707,16952.0,16951.0,1.02334384]
[1673154702345,1.09783207,16952.0,16951.0,0.52385478]
[1673154702833,0.65796707,16952.0,16951.0,0.52385478]
[1673154712437,1.09783207,16952.0,16951.0,0.52385478]
[1673154712689,0.65796707,16952.0,16951.0,0.52385478]
[1673154713456,1.09783207,16952.0,16951.0,0.52385478]
[1673154715708,0.65796707,16952.0,16951.0,0.52385478]
[1673154716490,1.09783207,16952.0,16951.0,0.52385478]
[1673154716731,0.65796707,16952.0,16951.0,0.52385478]
[1673154717471,0.65786413,16952.0,16951.0,0.52385478]
[1673154719865,0.65786413,16952.0,16951.0,0.52623146]
[1673154720370,0.65786413,16952.0,16951.0,0.52385478]
[1673154720843,1.09772913,16952.0,16951.0,0.52460345]
[1673154721093,0.65786413,16952.0,16951.0,0.52460345]
[1673154722678,1.09772913,16952.0,16951.0,0.52460345]
[1673154723150,0.65786413,16952.0,16951.0,0.52460345]
[1673154724821,0.65786413,16952.0,16951.0,0.52472227]
[1673154725199,0.65786413,16952.0,16951.0,0.52460345]
[1673154726578,0.65786413,16952.0,16951.0,0.52472227]
[1673154727069,0.65786413,16952.0,16951.0,0.52460345]
[1673154727804,1.09772913,16952.0,16951.0,0.52460345]
[1673154728364,0.65786413,16952.0,16951.0,0.52460345]
[1673154729421,0.65786413,16952.0,16951.0,0.52472227]
[1673154729669,0.65786413,16952.0,16951.0,0.52460345]
[1673154730836,0.65786413,16952.0,16951.0,0.52472227]
[1673154731084,0.65786413,16952.0,16951.0,0.52460345]
[1673154732039,0.65786413,16952.0,16951.0,0.52472227]
[1673154734571,0.67574188,16952.0,16951.0,0.52472227]
[1673154736644,0.67574188,16952.0,16951.0,0.52460345]
[1673154738365,0.67574188,16952.0,16951.0,0.52449742]
[1673154738604,1.11560688,16952.0,16951.0,0.52449742]
[1673154739083,0.67574188,16952.0,16951.0,0.52449742]
[1673154741419,0.67574188,16952.0,16951.0,0.52461624]
[1673154742240,0.67574188,16952.0,16951.0,0.52449742]
[1673154743328,0.67574188,16952.0,16951.0,0.52461624]
[1673154744061,0.67574188,16952.0,16951.0,0.52449742]
[1673154747666,0.67574188,16952.0,16951.0,0.52472347]
[1673154748753,0.67574188,16952.0,16951.0,0.52449742]
[1673154752956,0.67574188,16952.0,16951.0,0.52665934]
[1673154753954,0.67574188,16952.0,16951.0,0.52449742]
[1673154762795,0.67574188,16952.0,16951.0,0.5244331]
[1673154765046,0.67574188,16952.0,16951.0,0.52454118]
[1673154765492,0.67574188,16952.0,16951.0,0.5244331]
[1673154765978,0.67574188,16952.0,16951.0,1.63165024]
[1673154766477,0.67574188,16952.0,16951.0,1.02403024]
[1673154766770,0.67574188,16952.0,16951.0,1.02392216]
[1673154767267,0.67574188,16952.0,16951.0,1.63154216]
[1673154768574,0.67574188,16952.0,16951.0,1.02392216]
[1673154768828,0.67574188,16952.0,16951.0,0.5244331]
[1673154769125,0.67574188,16952.0,16951.0,1.63154216]
[1673154769577,0.67574188,16952.0,16951.0,1.1320531]
[1673154769793,0.67574188,16952.0,16951.0,1.63154216]
[1673154770548,0.67574188,16952.0,16951.0,1.02392216]
[1673154770792,0.67574188,16952.0,16951.0,0.5244331]
[1673154771803,0.67574188,16952.0,16951.0,1.1320531]
[1673154772057,0.67574188,16952.0,16951.0,1.63154216]
[1673154772308,0.67574188,16952.0,16951.0,1.02392216]
[1673154772573,0.67574188,16952.0,16951.0,0.5244331]
[1673154772831,0.67574188,16952.0,16951.0,1.1320531]
[1673154774128,0.67574188,16952.0,16951.0,0.5244331]
[1673154774612,0.67574188,16952.0,16951.0,1.1320531]
[1673154775365,0.67574188,16952.0,16951.0,0.5244331]
[1673154775870,0.67574188,16952.0,16951.0,1.1320531]
[1673154776381,0.67574188,16952.0,16951.0,0.5244331]
[1673154777167,0.67574188,16952.0,16951.0,1.1320531]